[Event "7th Paul Keres Memorial Festival 2026 Classic A"]
[Site "ESTONIA Resort Hotel & Spa conference center, EE"]
[Date "2026.07.28"]
[Round "2"]
[White "Grave, Jacob Templen"]
[Black "Juknis, Paulius"]
[Result "1-0"]
[Board "8"]
[TimeControl "5400+30"]
[WhiteFideId "1542656"]
[BlackFideId "12802247"]
[WhiteElo "2392"]
[BlackElo "2157"]
[WhiteTitle "FM"]
[BlackTitle "CM"]
[WhiteClock "0:19:12"]
[BlackClock "0:11:36"]
[Variant "Standard"]
[EndDate "2026.07.28"]
[EndTime "10:17:54"]

1. e4 {[%clk 1:30:49]}  c5 {[%clk 1:30:01]} 2. Nf3 {[%clk 1:30:53]}  Nc6 {[%clk 1:28:57]} 3. Bb5 {[%clk 1:31:06]}  Nf6 {[%clk 1:28:45]}
4. Bxc6 {[%clk 1:31:06]}  dxc6 {[%clk 1:29:08]} 5. d3 {[%clk 1:31:29]}  g6 {[%clk 1:28:22]} 6. h3 {[%clk 1:31:09]}  Bg7 {[%clk 1:28:15]}
7. Nc3 {[%clk 1:31:17]}  Nd7 {[%clk 1:27:07]} 8. Be3 {[%clk 1:30:53]}  e5 {[%clk 1:26:05]} 9. Qd2 {[%clk 1:30:52]}  h6 {[%clk 1:26:07]}
10. O-O {[%clk 1:31:00]}  b6 {[%clk 1:26:04]} 11. Nh2 {[%clk 1:31:12]}  Nf8 {[%clk 1:25:49]} 12. f4 {[%clk 1:31:34]}  exf4 {[%clk 1:25:58]}
13. Bxf4 {[%clk 1:31:59]}  Ne6 {[%clk 1:25:17]} 14. Be3 {[%clk 1:32:24]}  Nd4 {[%clk 1:21:49]} 15. Rae1 {[%clk 1:31:59]}  Be6 {[%clk 1:19:33]}
16. e5 {[%clk 1:31:12]}  Qc7 {[%clk 1:18:43]} 17. Ne4 {[%clk 0:57:40]}  Bxe5 {[%clk 1:13:49]} 18. Ng4 {[%clk 0:56:31]}  Nf5 {[%clk 0:44:50]}
19. Nef6+ {[%clk 0:46:51]}  Ke7 {[%clk 0:36:27]} 20. Nxe5 {[%clk 0:30:43]}  Qxe5 {[%clk 0:35:38]} 21. Ng4 {[%clk 0:30:13]}  Qxb2 {[%clk 0:32:25]}
22. Bf4 {[%clk 0:27:46]}  Qxa2 {[%clk 0:27:05]} 23. Be5 {[%clk 0:27:21]}  Rhg8 {[%clk 0:13:58]} 24. Nf6 {[%clk 0:26:11]}  Qa6 {[%clk 0:12:17]}
25. g4 {[%clk 0:22:19]}  Nd4 {[%clk 0:10:48]} 26. Nxg8+ {[%clk 0:19:31]}  Rxg8 {[%clk 0:11:13]} 27. Bxd4 {[%clk 0:19:18]}  cxd4 {[%clk 0:11:36]}
28. Qf4 {[%clk 0:19:12]} 1-0

[Event "7th Paul Keres Memorial Festival 2026 Classic A"]
[Site "ESTONIA Resort Hotel & Spa conference center, EE"]
[Date "2026.07.28"]
[Round "2"]
[White "Kavalnis, Rytis"]
[Black "Kirk, Ezra"]
[Result "0-1"]
[Board "9"]
[TimeControl "5400+30"]
[WhiteFideId "12841870"]
[BlackFideId "600067"]
[WhiteElo "2148"]
[BlackElo "2378"]
[BlackTitle "IM"]
[WhiteClock "0:01:26"]
[BlackClock "0:01:28"]
[Variant "Standard"]
[EndDate "2026.07.28"]
[EndTime "11:16:00"]

1. e4 {[%clk 1:30:50]}  e6 {[%clk 1:30:36]} 2. d4 {[%clk 1:30:50]}  d5 {[%clk 1:28:54]} 3. Nc3 {[%clk 1:31:47]}  Bb4 {[%clk 1:29:15]}
4. e5 {[%clk 1:32:07]}  c5 {[%clk 1:29:33]} 5. a3 {[%clk 1:32:34]}  Bxc3+ {[%clk 1:29:58]} 6. bxc3 {[%clk 1:32:59]}  Nc6 {[%clk 1:30:22]}
7. Qg4 {[%clk 1:29:10]}  g6 {[%clk 1:29:19]} 8. Nf3 {[%clk 1:27:19]}  Qa5 {[%clk 1:28:01]} 9. Bd2 {[%clk 1:26:54]}  c4 {[%clk 1:22:17]}
10. h4 {[%clk 1:25:34]}  h6 {[%clk 1:21:11]} 11. Be2 {[%clk 0:43:16]}  Bd7 {[%clk 1:18:54]} 12. Qf4 {[%clk 0:41:32]}  Rh7 {[%clk 1:18:01]}
13. Nh2 {[%clk 0:39:52]}  O-O-O {[%clk 1:03:30]} 14. Ng4 {[%clk 0:40:08]}  Rf8 {[%clk 0:55:35]} 15. Nf6 {[%clk 0:39:36]}  Nxf6 {[%clk 0:55:56]}
16. Qxf6 {[%clk 0:39:57]}  Qd8 {[%clk 0:52:45]} 17. Qxd8+ {[%clk 0:37:55]}  Kxd8 {[%clk 0:46:22]} 18. Be3 {[%clk 0:36:36]}  Kc8 {[%clk 0:41:43]}
19. Kd2 {[%clk 0:36:04]}  f5 {[%clk 0:39:15]} 20. exf6 {[%clk 0:34:47]}  Rxf6 {[%clk 0:38:38]} 21. f4 {[%clk 0:34:55]}  Ne7 {[%clk 0:36:51]}
22. g4 {[%clk 0:26:29]}  h5 {[%clk 0:35:38]} 23. gxh5 {[%clk 0:26:16]}  gxh5 {[%clk 0:35:59]} 24. Rag1 {[%clk 0:26:39]}  Be8 {[%clk 0:35:00]}
25. Rg5 {[%clk 0:22:33]}  Nf5 {[%clk 0:35:09]} 26. Bf3 {[%clk 0:14:32]}  b6 {[%clk 0:29:15]} 27. Bf2 {[%clk 0:13:57]}  Nd6 {[%clk 0:16:34]}
28. Be3 {[%clk 0:13:42]}  Bg6 {[%clk 0:12:38]} 29. Rhg1 {[%clk 0:13:35]}  Bf5 {[%clk 0:12:19]} 30. Kc1 {[%clk 0:11:36]}  Kb7 {[%clk 0:08:02]}
31. Rg7+ {[%clk 0:10:48]}  Rf7 {[%clk 0:08:07]} 32. Rxh7 {[%clk 0:11:09]}  Rxh7 {[%clk 0:08:02]} 33. Rg5 {[%clk 0:05:14]}  Bg4 {[%clk 0:07:04]}
34. Bxg4 {[%clk 0:05:15]}  hxg4 {[%clk 0:07:30]} 35. Rxg4 {[%clk 0:05:39]}  Nf5 {[%clk 0:07:17]} 36. Bf2 {[%clk 0:05:52]}  Kc6 {[%clk 0:07:32]}
37. Rg1 {[%clk 0:04:54]}  Kd6 {[%clk 0:06:47]} 38. Kd1 {[%clk 0:04:44]}  Ke7 {[%clk 0:06:21]} 39. Ke2 {[%clk 0:04:57]}  Rh6 {[%clk 0:06:16]}
40. Rh1 {[%clk 0:04:20]}  Kf6 {[%clk 0:06:30]} 41. Kf3 {[%clk 0:03:28]}  Nd6 {[%clk 0:05:57]} 42. a4 {[%clk 0:03:35]}  b5 {[%clk 0:04:02]}
43. Ra1 {[%clk 0:02:31]}  bxa4 {[%clk 0:04:05]} 44. Rxa4 {[%clk 0:02:52]}  Rh7 {[%clk 0:04:24]} 45. Ra6 {[%clk 0:01:02]}  Ne4 {[%clk 0:04:05]}
46. Be1 {[%clk 0:01:19]}  Rg7 {[%clk 0:04:07]} 47. h5 {[%clk 0:01:29]}  Kf5 {[%clk 0:03:43]} 48. h6 {[%clk 0:01:30]}  Rh7 {[%clk 0:03:53]}
49. Ra3 {[%clk 0:00:45]}  Rxh6 {[%clk 0:03:09]} 50. Rxa7 {[%clk 0:01:07]}  Rh3+ {[%clk 0:02:13]} 51. Kg2 {[%clk 0:00:45]}  Re3 {[%clk 0:02:04]}
52. Kf1 {[%clk 0:01:04]}  Kxf4 {[%clk 0:01:29]} 53. Rf7+ {[%clk 0:00:54]}  Kg4 {[%clk 0:01:50]} 54. Re7 {[%clk 0:00:37]}  Nxc3 {[%clk 0:01:06]}
55. Bxc3 {[%clk 0:00:37]}  Rxc3 {[%clk 0:01:31]} 56. Rxe6 {[%clk 0:01:02]}  Rxc2 {[%clk 0:01:49]} 57. Re5 {[%clk 0:01:02]}  Kf3 {[%clk 0:01:08]}
58. Ke1 {[%clk 0:01:26]}  c3 {[%clk 0:01:28]} 59. Kd1 {[%clk 0:00:01]}  Rd2+ {[%clk 0:01:26]} 60. Kc1 {[%clk 0:01:16]}  Kf4 {[%clk 0:01:10]}
61. Rxd5 {[%clk 0:01:12]}  Ke3 {[%clk 0:01:05]} 62. Re5+ {[%clk 0:01:05]}  Kd3 {[%clk 0:01:20]} 63. Rh5 {[%clk 0:00:57]}  Rg2 {[%clk 0:01:15]}
64. Rh3+ {[%clk 0:00:54]} 0-1

[Event "7th Paul Keres Memorial Festival 2026 Classic A"]
[Site "ESTONIA Resort Hotel & Spa conference center, EE"]
[Date "2026.07.28"]
[Round "2"]
[White "Fecker, Noah"]
[Black "Povilaitis, Tomas"]
[Result "1/2-1/2"]
[Board "10"]
[TimeControl "5400+30"]
[WhiteFideId "1334263"]
[BlackFideId "12811700"]
[WhiteElo "2371"]
[BlackElo "2150"]
[WhiteTitle "FM"]
[WhiteClock "0:01:09"]
[BlackClock "0:08:30"]
[Variant "Standard"]
[EndDate "2026.07.28"]
[EndTime "10:36:46"]

1. e4 {[%clk 1:30:56]}  c5 {[%clk 1:30:45]} 2. Nf3 {[%clk 1:31:18]}  Nc6 {[%clk 1:31:08]} 3. Bb5 {[%clk 1:31:37]}  d6 {[%clk 1:31:31]}
4. O-O {[%clk 1:31:58]}  Bd7 {[%clk 1:31:55]} 5. Re1 {[%clk 1:32:14]}  a6 {[%clk 1:32:17]} 6. Bf1 {[%clk 1:31:41]}  Bg4 {[%clk 1:32:40]}
7. c3 {[%clk 1:31:13]}  Nf6 {[%clk 1:33:02]} 8. d4 {[%clk 1:29:50]}  cxd4 {[%clk 1:33:27]} 9. cxd4 {[%clk 1:30:10]}  d5 {[%clk 1:33:53]}
10. e5 {[%clk 1:30:01]}  Ng8 {[%clk 1:34:17]} 11. e6 {[%clk 1:27:04]}  Bxe6 {[%clk 1:34:43]} 12. Rxe6 {[%clk 1:26:48]}  fxe6 {[%clk 1:35:08]}
13. g3 {[%clk 1:20:33]}  g6 {[%clk 1:17:14]} 14. Nc3 {[%clk 1:15:14]}  Bh6 {[%clk 0:38:33]} 15. Na4 {[%clk 1:11:56]}  Qd6 {[%clk 0:38:41]}
16. Nc5 {[%clk 0:58:03]}  e5 {[%clk 0:32:29]} 17. Nxb7 {[%clk 0:53:30]}  Qb4 {[%clk 0:31:05]} 18. Nc5 {[%clk 0:46:46]}  e4 {[%clk 0:18:51]}
19. a3 {[%clk 0:30:15]}  Qb6 {[%clk 0:17:37]} 20. Ng5 {[%clk 0:28:38]}  Bxg5 {[%clk 0:12:03]} 21. Bxg5 {[%clk 0:29:05]}  h6 {[%clk 0:12:28]}
22. Be3 {[%clk 0:22:08]}  Nf6 {[%clk 0:12:55]} 23. b4 {[%clk 0:21:15]}  Kf7 {[%clk 0:09:30]} 24. Rc1 {[%clk 0:18:51]}  h5 {[%clk 0:07:42]}
25. Bh3 {[%clk 0:15:19]}  a5 {[%clk 0:07:56]} 26. Na4 {[%clk 0:09:41]}  Qb7 {[%clk 0:07:45]} 27. Nc5 {[%clk 0:09:55]}  Qb6 {[%clk 0:08:10]}
28. Na4 {[%clk 0:02:52]}  Qb7 {[%clk 0:08:32]} 29. Nc5 {[%clk 0:02:12]}  Qb6 {[%clk 0:08:30]} 30. Na4 {[%clk 0:01:09]} 1/2-1/2

[Event "7th Paul Keres Memorial Festival 2026 Classic A"]
[Site "ESTONIA Resort Hotel & Spa conference center, EE"]
[Date "2026.07.28"]
[Round "3"]
[White "Kirk, Ezra"]
[Black "Lagarde, Maxime"]
[Result "1/2-1/2"]
[Board "1"]
[TimeControl "5400+30"]
[WhiteFideId "600067"]
[BlackFideId "662399"]
[WhiteElo "2378"]
[BlackElo "2622"]
[WhiteTitle "IM"]
[BlackTitle "GM"]
[WhiteClock "0:58:27"]
[BlackClock "1:05:31"]
[Variant "Standard"]
[EndDate "2026.07.28"]
[EndTime "14:31:48"]

1. e4 {[%clk 1:30:56]}  c5 {[%clk 1:30:58]} 2. Nf3 {[%clk 1:31:19]}  e6 {[%clk 1:31:26]} 3. c3 {[%clk 1:31:44]}  d5 {[%clk 1:31:18]}
4. exd5 {[%clk 1:32:02]}  Qxd5 {[%clk 1:31:40]} 5. d4 {[%clk 1:32:26]}  Nf6 {[%clk 1:31:35]} 6. Na3 {[%clk 1:32:46]}  Nc6 {[%clk 1:31:13]}
7. Be3 {[%clk 1:32:28]}  cxd4 {[%clk 1:31:34]} 8. Nb5 {[%clk 1:32:45]}  Qd7 {[%clk 1:31:40]} 9. Nbxd4 {[%clk 1:31:06]}  Be7 {[%clk 1:27:27]}
10. Bb5 {[%clk 1:23:11]}  Qc7 {[%clk 1:27:03]} 11. O-O {[%clk 1:16:12]}  O-O {[%clk 1:23:31]} 12. Nxc6 {[%clk 1:08:48]}  bxc6 {[%clk 1:23:54]}
13. Bd3 {[%clk 1:03:34]}  e5 {[%clk 1:23:29]} 14. Qc2 {[%clk 1:03:07]}  h6 {[%clk 1:19:21]} 15. Rfe1 {[%clk 1:00:19]}  Bg4 {[%clk 1:16:06]}
16. Nd2 {[%clk 0:58:27]}  Nd5 {[%clk 1:05:31]} 17. Nc4 {[%clk 0:58:26]} 1/2-1/2

[Event "7th Paul Keres Memorial Festival 2026 Classic A"]
[Site "ESTONIA Resort Hotel & Spa conference center, EE"]
[Date "2026.07.28"]
[Round "3"]
[White "Kazakouski, Valery"]
[Black "Grave, Jacob Templen"]
[Result "1-0"]
[Board "2"]
[TimeControl "5400+30"]
[WhiteFideId "13507443"]
[BlackFideId "1542656"]
[WhiteElo "2594"]
[BlackElo "2392"]
[WhiteTitle "GM"]
[BlackTitle "FM"]
[WhiteClock "0:30:03"]
[BlackClock "0:00:32"]
[Variant "Standard"]
[EndDate "2026.07.28"]
[EndTime "16:31:21"]

1. d4 {[%clk 1:30:53]}  d5 {[%clk 1:30:38]} 2. c4 {[%clk 1:31:18]}  e6 {[%clk 1:31:02]} 3. Nc3 {[%clk 1:31:41]}  Nf6 {[%clk 1:31:15]}
4. Bg5 {[%clk 1:32:04]}  dxc4 {[%clk 1:30:36]} 5. e3 {[%clk 1:32:26]}  c5 {[%clk 1:30:55]} 6. Bxf6 {[%clk 1:32:48]}  Qxf6 {[%clk 1:31:06]}
7. d5 {[%clk 1:33:12]}  a6 {[%clk 1:29:44]} 8. Nf3 {[%clk 1:33:31]}  Nd7 {[%clk 1:28:54]} 9. dxe6 {[%clk 1:30:51]}  Qxe6 {[%clk 1:24:02]}
10. Qa4 {[%clk 1:26:38]}  Rb8 {[%clk 1:23:14]} 11. Bxc4 {[%clk 1:25:27]}  Qf6 {[%clk 1:17:49]} 12. Nd5 {[%clk 1:16:25]}  Qxb2 {[%clk 1:07:52]}
13. O-O {[%clk 1:16:28]}  b5 {[%clk 0:41:42]} 14. Bxb5 {[%clk 1:12:34]}  Rxb5 {[%clk 0:39:04]} 15. Qe4+ {[%clk 1:12:17]}  Kd8 {[%clk 0:39:12]}
16. Ng5 {[%clk 1:09:56]}  Ne5 {[%clk 0:38:37]} 17. Rab1 {[%clk 0:45:00]}  f5 {[%clk 0:34:05]} 18. Qf4 {[%clk 0:45:15]}  Qxb1 {[%clk 0:30:01]}
19. Qxe5 {[%clk 0:45:36]}  Rb7 {[%clk 0:29:56]} 20. Nf7+ {[%clk 0:45:20]}  Kd7 {[%clk 0:29:38]} 21. Nc3 {[%clk 0:45:27]}  Qd3 {[%clk 0:25:19]}
22. Rd1 {[%clk 0:44:35]}  Qxd1+ {[%clk 0:23:09]} 23. Nxd1 {[%clk 0:45:02]}  Rg8 {[%clk 0:22:56]} 24. Qxf5+ {[%clk 0:44:44]}  Kc7 {[%clk 0:22:37]}
25. Qxh7 {[%clk 0:41:20]}  Be6 {[%clk 0:22:07]} 26. Qg6 {[%clk 0:37:35]}  Rb6 {[%clk 0:20:52]} 27. Nc3 {[%clk 0:32:11]}  Be7 {[%clk 0:19:52]}
28. h3 {[%clk 0:30:28]}  Bf6 {[%clk 0:10:07]} 29. Qg3+ {[%clk 0:30:36]}  Kb7 {[%clk 0:09:16]} 30. Nd6+ {[%clk 0:30:31]}  Ka7 {[%clk 0:09:12]}
31. Nde4 {[%clk 0:30:45]}  Rc6 {[%clk 0:06:00]} 32. Nxf6 {[%clk 0:30:10]}  gxf6 {[%clk 0:06:26]} 33. Qf3 {[%clk 0:30:24]}  Rgc8 {[%clk 0:05:44]}
34. h4 {[%clk 0:30:20]}  f5 {[%clk 0:05:35]} 35. Qf4 {[%clk 0:30:16]}  Rd8 {[%clk 0:05:02]} 36. Qe5 {[%clk 0:30:16]}  Rdd6 {[%clk 0:03:54]}
37. a4 {[%clk 0:29:49]}  Kb6 {[%clk 0:03:18]} 38. h5 {[%clk 0:29:44]}  Ka5 {[%clk 0:01:56]} 39. f3 {[%clk 0:29:35]}  Kb4 {[%clk 0:01:56]}
40. e4 {[%clk 0:29:45]}  fxe4 {[%clk 0:01:45]} 41. Nxe4 {[%clk 0:30:07]}  Rd5 {[%clk 0:00:52]} 42. Qb2+ {[%clk 0:29:50]}  Ka5 {[%clk 0:01:05]}
43. h6 {[%clk 0:30:02]}  Rd4 {[%clk 0:00:34]} 44. h7 {[%clk 0:30:11]}  Rc8 {[%clk 0:00:31]} 45. h8=Q {[%clk 0:30:03]}  Rd1+ {[%clk 0:00:32]} 1-0

[Event "7th Paul Keres Memorial Festival 2026 Classic A"]
[Site "ESTONIA Resort Hotel & Spa conference center, EE"]
[Date "2026.07.28"]
[Round "3"]
[White "Haitin, Ilja"]
[Black "Zeng, Chongsheng"]
[Result "1/2-1/2"]
[Board "3"]
[TimeControl "5400+30"]
[WhiteFideId "4501764"]
[BlackFideId "8603847"]
[WhiteElo "2273"]
[BlackElo "2565"]
[WhiteTitle "FM"]
[BlackTitle "GM"]
[WhiteClock "0:00:54"]
[BlackClock "0:00:35"]
[Variant "Standard"]
[EndDate "2026.07.28"]
[EndTime "17:06:03"]

1. e4 {[%clk 1:30:58]}  c5 {[%clk 1:27:54]} 2. Nf3 {[%clk 1:31:22]}  e6 {[%clk 1:28:12]} 3. d4 {[%clk 1:31:49]}  cxd4 {[%clk 1:28:38]}
4. Nxd4 {[%clk 1:32:15]}  a6 {[%clk 1:28:54]} 5. Bd3 {[%clk 1:32:40]}  Nf6 {[%clk 1:29:02]} 6. O-O {[%clk 1:32:58]}  Qc7 {[%clk 1:29:15]}
7. Qe2 {[%clk 1:33:14]}  d6 {[%clk 1:29:38]} 8. c4 {[%clk 1:33:35]}  Nbd7 {[%clk 1:29:57]} 9. f4 {[%clk 1:33:40]}  g6 {[%clk 1:30:18]}
10. f5 {[%clk 1:33:25]}  Bg7 {[%clk 1:30:40]} 11. fxe6 {[%clk 1:33:17]}  Ne5 {[%clk 1:31:01]} 12. exf7+ {[%clk 1:32:59]}  Nxf7 {[%clk 1:31:29]}
13. Nc3 {[%clk 1:31:45]}  Qc5 {[%clk 1:31:09]} 14. Be3 {[%clk 1:31:40]}  Ng4 {[%clk 1:31:19]} 15. Nf5 {[%clk 1:28:52]}  Nxe3 {[%clk 1:31:39]}
16. Na4 {[%clk 1:19:28]}  Qa7 {[%clk 1:31:42]} 17. Nxg7+ {[%clk 1:19:33]}  Kf8 {[%clk 1:31:47]} 18. c5 {[%clk 1:19:44]}  Nxf1 {[%clk 1:31:50]}
19. Rxf1 {[%clk 1:20:07]}  Kxg7 {[%clk 1:30:42]} 20. Qf3 {[%clk 1:19:21]}  b5 {[%clk 1:29:22]} 21. Qf6+ {[%clk 1:19:40]}  Kg8 {[%clk 1:29:41]}
22. Nb6 {[%clk 1:19:57]}  Rb8 {[%clk 1:29:31]} 23. b4 {[%clk 1:20:13]}  dxc5 {[%clk 1:28:32]} 24. bxc5 {[%clk 1:18:37]}  Bg4 {[%clk 1:28:56]}
25. h3 {[%clk 1:15:40]}  Re8 {[%clk 1:28:29]} 26. hxg4 {[%clk 1:12:48]}  Qe7 {[%clk 1:28:54]} 27. Nd5 {[%clk 0:58:44]}  Qxf6 {[%clk 1:29:07]}
28. Nxf6+ {[%clk 0:58:50]}  Kg7 {[%clk 1:29:36]} 29. Nxe8+ {[%clk 0:58:34]}  Rxe8 {[%clk 1:30:04]} 30. a4 {[%clk 0:57:15]}  Rd8 {[%clk 1:18:50]}
31. Be2 {[%clk 0:48:29]}  Rd2 {[%clk 0:57:05]} 32. Re1 {[%clk 0:47:06]}  bxa4 {[%clk 0:52:24]} 33. Bxa6 {[%clk 0:46:55]}  Ne5 {[%clk 0:47:07]}
34. c6 {[%clk 0:36:11]}  Nxc6 {[%clk 0:33:11]} 35. Bb5 {[%clk 0:33:41]}  Ne5 {[%clk 0:33:26]} 36. Bxa4 {[%clk 0:33:42]}  Kf6 {[%clk 0:31:35]}
37. Ra1 {[%clk 0:17:24]}  Kg5 {[%clk 0:25:21]} 38. Bd1 {[%clk 0:17:26]}  Kf4 {[%clk 0:24:18]} 39. Kh2 {[%clk 0:11:05]}  g5 {[%clk 0:12:29]}
40. Rb1 {[%clk 0:11:07]}  Rd6 {[%clk 0:10:22]} 41. Ra1 {[%clk 0:08:32]}  Rd2 {[%clk 0:09:05]} 42. Rb1 {[%clk 0:07:55]}  h6 {[%clk 0:07:49]}
43. Ra1 {[%clk 0:07:55]}  Rd4 {[%clk 0:05:22]} 44. Rb1 {[%clk 0:07:42]}  Rxe4 {[%clk 0:04:21]} 45. Rb6 {[%clk 0:01:52]}  Re1 {[%clk 0:00:42]}
46. Rf6+ {[%clk 0:01:51]}  Ke3 {[%clk 0:01:05]} 47. Bf3 {[%clk 0:01:41]}  Rf1 {[%clk 0:00:33]} 48. Re6 {[%clk 0:00:51]}  Kf4 {[%clk 0:00:42]}
49. Rf6+ {[%clk 0:01:02]}  Ke3 {[%clk 0:01:06]} 50. Re6 {[%clk 0:00:54]}  Kf4 {[%clk 0:00:35]} 1/2-1/2

[Event "7th Paul Keres Memorial Festival 2026 Classic A"]
[Site "ESTONIA Resort Hotel & Spa conference center, EE"]
[Date "2026.07.28"]
[Round "3"]
[White "Bleys, Michiel"]
[Black "Laurusas, Tomas"]
[Result "0-1"]
[Board "4"]
[TimeControl "5400+30"]
[WhiteFideId "240702"]
[BlackFideId "12803731"]
[WhiteElo "2159"]
[BlackElo "2511"]
[BlackTitle "GM"]
[WhiteClock "0:02:29"]
[BlackClock "0:13:07"]
[Variant "Standard"]
[EndDate "2026.07.28"]
[EndTime "16:31:23"]

1. d4 {[%clk 1:30:11]}  Nf6 {[%clk 1:30:45]} 2. c4 {[%clk 1:30:35]}  e6 {[%clk 1:31:12]} 3. Nc3 {[%clk 1:31:00]}  d5 {[%clk 1:31:34]}
4. cxd5 {[%clk 1:31:06]}  exd5 {[%clk 1:31:57]} 5. Bg5 {[%clk 1:31:07]}  c6 {[%clk 1:31:40]} 6. e3 {[%clk 1:29:58]}  h6 {[%clk 1:31:51]}
7. Bh4 {[%clk 1:29:41]}  Be7 {[%clk 1:32:15]} 8. Bd3 {[%clk 1:29:56]}  O-O {[%clk 1:32:32]} 9. Nge2 {[%clk 1:28:22]}  Re8 {[%clk 1:32:43]}
10. O-O {[%clk 1:28:14]}  Nbd7 {[%clk 1:33:04]} 11. f3 {[%clk 1:26:30]}  b5 {[%clk 1:33:28]} 12. Rc1 {[%clk 1:18:34]}  Bb7 {[%clk 1:32:20]}
13. Bg3 {[%clk 1:13:10]}  Bf8 {[%clk 1:05:05]} 14. Qd2 {[%clk 1:05:25]}  Nb6 {[%clk 1:05:02]} 15. Bf2 {[%clk 0:53:43]}  b4 {[%clk 0:56:25]}
16. Nb1 {[%clk 0:52:20]}  Rc8 {[%clk 0:53:57]} 17. Qd1 {[%clk 0:46:09]}  c5 {[%clk 0:50:13]} 18. dxc5 {[%clk 0:44:15]}  Bxc5 {[%clk 0:50:38]}
19. Nd4 {[%clk 0:40:46]}  Nc4 {[%clk 0:50:32]} 20. Qb3 {[%clk 0:27:25]}  Qb6 {[%clk 0:23:23]} 21. Bf5 {[%clk 0:19:51]}  Rc7 {[%clk 0:23:07]}
22. Kh1 {[%clk 0:14:11]}  g6 {[%clk 0:18:34]} 23. Bh3 {[%clk 0:12:13]}  Rce7 {[%clk 0:17:35]} 24. Qc2 {[%clk 0:07:30]}  Bxd4 {[%clk 0:14:40]}
25. exd4 {[%clk 0:07:50]}  Re2 {[%clk 0:15:08]} 26. Qa4 {[%clk 0:04:51]}  Nxb2 {[%clk 0:11:59]} 27. Qb3 {[%clk 0:05:07]}  Ba6 {[%clk 0:12:24]}
28. Rce1 {[%clk 0:02:22]}  Bc4 {[%clk 0:12:43]} 29. Rxe2 {[%clk 0:02:29]}  Rxe2 {[%clk 0:13:07]} 0-1

[Event "7th Paul Keres Memorial Festival 2026 Classic A"]
[Site "ESTONIA Resort Hotel & Spa conference center, EE"]
[Date "2026.07.28"]
[Round "3"]
[White "Keinanen, Toivo"]
[Black "Keinanen, Anastasia"]
[Result "1-0"]
[Board "5"]
[TimeControl "5400+30"]
[WhiteFideId "509825"]
[BlackFideId "34101737"]
[WhiteElo "2495"]
[BlackElo "2259"]
[WhiteTitle "IM"]
[BlackTitle "WIM"]
[WhiteClock "1:04:39"]
[BlackClock "0:59:15"]
[Variant "Standard"]
[EndDate "2026.07.28"]
[EndTime "14:43:08"]

1. Nf3 {[%clk 1:29:44]}  f5 {[%clk 1:30:24]} 2. d4 {[%clk 1:29:35]}  Nf6 {[%clk 1:30:32]} 3. g3 {[%clk 1:28:47]}  g6 {[%clk 1:30:53]}
4. Bg2 {[%clk 1:29:10]}  Bg7 {[%clk 1:31:17]} 5. O-O {[%clk 1:29:33]}  O-O {[%clk 1:31:39]} 6. c4 {[%clk 1:29:55]}  d6 {[%clk 1:30:45]}
7. Nc3 {[%clk 1:29:52]}  Qe8 {[%clk 1:31:01]} 8. Nd5 {[%clk 1:29:50]}  Na6 {[%clk 1:18:55]} 9. Nxf6+ {[%clk 1:29:55]}  Bxf6 {[%clk 1:18:36]}
10. Bh6 {[%clk 1:29:50]}  Bg7 {[%clk 1:18:22]} 11. Bxg7 {[%clk 1:29:42]}  Kxg7 {[%clk 1:18:46]} 12. Qd2 {[%clk 1:25:09]}  e6 {[%clk 1:13:53]}
13. Rae1 {[%clk 1:19:52]}  Qe7 {[%clk 1:10:08]} 14. e4 {[%clk 1:19:24]}  fxe4 {[%clk 1:05:51]} 15. Rxe4 {[%clk 1:18:46]}  h6 {[%clk 1:06:02]}
16. b4 {[%clk 1:15:01]}  c6 {[%clk 1:04:59]} 17. Rfe1 {[%clk 1:14:17]}  Nc7 {[%clk 1:04:53]} 18. c5 {[%clk 1:12:08]}  dxc5 {[%clk 1:02:33]}
19. bxc5 {[%clk 1:11:38]}  Nd5 {[%clk 1:02:43]} 20. Ne5 {[%clk 1:11:08]}  Nf6 {[%clk 1:00:41]} 21. R4e3 {[%clk 1:10:21]}  a5 {[%clk 0:59:51]}
22. Qc2 {[%clk 1:07:04]}  Qe8 {[%clk 1:00:03]} 23. Nc4 {[%clk 1:07:12]}  Bd7 {[%clk 0:59:39]} 24. Nd6 {[%clk 1:07:02]}  Qb8 {[%clk 0:59:33]}
25. Bh3 {[%clk 1:06:51]}  Nd5 {[%clk 0:59:26]} 26. Re5 {[%clk 1:05:43]}  Rf6 {[%clk 0:58:43]} 27. Bxe6 {[%clk 1:05:36]}  Bxe6 {[%clk 0:59:00]}
28. Rxe6 {[%clk 1:06:02]}  Qf8 {[%clk 0:59:15]} 29. Re8 {[%clk 1:04:39]} 1-0